bitfinex/quotes_SOLUSD_20250625
["timestamp","ask_amount","ask_price","bid_price","bid_amount"]
[1750836301921,1.4639194,146.72,146.71,12.30246835]
[1750836306922,1.4639194,146.72,146.71,6.81616795]
[1750836307164,1.4639194,146.72,146.71,12.30246835]
[1750836307331,1.4639194,146.72,146.71,6.81616795]
[1750836307835,1.4639194,146.72,146.71,12.30246835]
[1750836308026,1.4639194,146.72,146.71,6.81616795]
[1750836308397,1.4639194,146.72,146.71,12.30246835]
[1750836310304,1.4639194,146.72,146.71,6.81616795]
[1750836311947,1.4639194,146.72,146.71,12.30246835]
[1750836312742,1.4639194,146.72,146.71,6.81616795]
[1750836312917,1.4639194,146.72,146.71,12.30246835]
[1750836315740,1.4639194,146.72,146.71,6.81616795]
[1750836316606,1.4639194,146.72,146.7,12.30271714]
[1750836316807,1.4639194,146.72,146.71,5.4863004]
[1750836317235,1.4639194,146.72,146.7,6.81641674]
[1750836317435,1.4639194,146.72,146.71,5.4863004]
[1750836317641,1.4639194,146.72,146.71,12.30246835]
[1750836320718,1.4639194,146.72,146.7,5.4863004]
[1750836320917,1.4639194,146.72,146.69,18.64964886]
[1750836321130,1.4639194,146.72,146.7,5.4863004]
[1750836321431,1.4639194,146.72,146.71,5.4863004]
[1750836321737,1.4639194,146.72,146.71,30.95211721]
[1750836327831,1.4639194,146.72,146.71,33.48300378]
[1750836328147,1.4639194,146.72,146.71,9.34705452]
[1750836328358,1.4639194,146.72,146.71,12.30246835]
[1750836329239,1.4639194,146.72,146.71,30.95211721]
[1750836331355,1.4639194,146.72,146.71,12.30246835]
[1750836332451,1.4639194,146.72,146.71,14.83695612]
[1750836332842,1.4639194,146.72,146.71,33.48660498]
[1750836333440,1.4639194,146.72,146.71,25.46581681]
[1750836333644,1.4639194,146.72,146.71,30.95211721]
[1750836334027,1.4639194,146.72,146.71,33.48643057]
[1750836336454,1.4639194,146.72,146.71,33.48807601]
[1750836340637,5.4863004,146.83,146.75,26.0]
[1750836340860,5.4863004,146.82,146.77,5.4863004]
[1750836341160,5.4863004,146.79,146.75,5.94]
[1750836341357,5.4863004,146.79,146.76,2.53884747]
[1750836341561,5.4863004,146.8,146.75,11.4263004]
[1750836341737,6.4057,146.81,146.76,8.02502933]
[1750836341942,6.4057,146.81,146.75,5.94]
[1750836341943,5.09800463,146.83,146.79,5.4863004]
[1750836342161,42.64580503,146.85,146.8,5.4863004]
[1750836342364,5.09800463,146.84,146.8,5.4863004]
[1750836342660,37.5478004,146.85,146.8,5.4863004]
[1750836342862,37.5478004,146.85,146.78,18.64964886]
[1750836343070,37.5478004,146.85,146.8,5.4863004]
[1750836343266,5.0907658,146.87,146.82,18.64964886]
[1750836343457,7.6243,146.89,146.85,5.4863004]
[1750836343771,19.06744636,146.93,146.86,5.4863004]
[1750836343945,5.4863004,146.92,146.88,6.80827886]
[1750836344270,5.4863004,146.91,146.83,17.02642488]
[1750836344565,5.4863004,146.89,146.85,5.4863004]
[1750836345143,26.0,146.91,146.83,17.02642488]
[1750836345341,5.4863004,146.89,146.84,5.4863004]
[1750836345564,26.0,146.89,146.85,5.4863004]
[1750836345753,31.4863004,146.89,146.82,42.48836292]
[1750836345959,31.4863004,146.89,146.85,5.4863004]
[1750836346145,31.4863004,146.89,146.85,6.80952244]
[1750836346348,26.0,146.89,146.85,12.29582284]
[1750836347258,31.4863004,146.89,146.85,6.80952244]
[1750836347452,26.0,146.89,146.85,12.29582284]
[1750836347655,31.4863004,146.89,146.85,12.29582284]
[1750836347864,32.80799092,146.89,146.83,5.4863004]
[1750836348146,31.4863004,146.89,146.84,5.4863004]
[1750836348765,5.0907658,146.92,146.83,6.81040282]
[1750836348766,26.0,146.91,146.86,5.4863004]
[1750836349147,5.4863004,146.9,146.86,5.4863004]
[1750836349359,26.0,146.91,146.86,5.4863004]
[1750836349562,5.4863004,146.9,146.86,5.4863004]
[1750836349866,31.4863004,146.91,146.86,5.4863004]
[1750836350048,31.4863004,146.91,146.87,6.80874242]
[1750836350250,5.4863004,146.92,146.87,12.29504282]
[1750836350467,31.4863004,146.92,146.87,12.29504282]
[1750836351065,7.593,146.93,146.88,5.4863004]
[1750836351267,13.0793004,146.93,146.87,6.80874242]
[1750836351467,5.4863004,146.92,146.88,5.4863004]
[1750836351955,5.4863004,146.92,146.87,12.29504282]
[1750836353174,5.4863004,146.92,146.88,5.4863004]
[1750836355367,13.0793004,146.93,146.89,6.80781537]
[1750836355780,11.5316004,146.93,146.89,6.80781537]
[1750836355964,26.0,146.94,146.89,12.29411577]
[1750836356171,31.4863004,146.94,146.9,5.4863004]
[1750836356477,31.4863004,146.94,146.89,12.29411577]
[1750836357084,31.4863004,146.94,146.9,5.4863004]
[1750836357468,31.4863004,146.94,146.9,12.2935281]
[1750836359583,36.80290914,147.0,146.93,5.4863004]
[1750836359789,5.4863004,146.99,146.95,5.4863004]
[1750836360088,35.4863004,147.0,146.95,5.4863004]
[1750836360264,30.0,147.0,146.97,5.4863004]
[1750836360866,7.7229861,147.02,147.0,18.64964886]
[1750836360867,0.46873291,147.02,147.0,18.64964886]
[1750836361077,2.02006801,147.16,147.11,26.0]
[1750836361301,8.85698179,147.21,147.19,26.0]
[1750836361479,4.84947633,147.31,147.19,26.0]
[1750836361480,4.2366857,147.25,147.21,18.64964886]
[1750836361662,4.2366857,147.25,147.24,18.64964886]
[1750836361860,1.4639194,147.31,147.21,18.64964886]
[1750836361861,1.4639194,147.31,147.27,26.0]
[1750836362062,3.53970927,147.39,147.3,31.4863004]
[1750836362262,3.53970927,147.39,147.38,5.4863004]
[1750836362786,9.41912246,147.46,147.39,18.64964886]
[1750836362996,3.53846036,147.43,147.42,5.4863004]
[1750836363195,9.41912246,147.46,147.42,5.4863004]
[1750836363502,8.91912246,147.46,147.37,18.64964886]
[1750836363686,9.5703165,147.45,147.38,0.67833596]
[1750836364067,35.49181259,147.45,147.28,18.64964886]
[1750836364290,35.49181259,147.45,147.3,19.0382801]
[1750836364291,1.151,147.44,147.3,19.0382801]
[1750836364493,9.0382801,147.37,147.27,19.52905611]
[1750836364700,9.98534346,147.44,147.33,26.0]
[1750836364995,4.2366857,147.47,147.34,8.96583281]
[1750836365194,4.2366857,147.47,147.37,26.0]
[1750836365403,4.2366857,147.47,147.46,41.81978016]
[1750836365701,4.2366857,147.47,147.46,23.65978016]
[1750836365905,4.2366857,147.47,147.46,15.29912785]
[1750836366201,4.2366857,147.47,147.43,7.84]
[1750836366381,4.2366857,147.47,147.41,26.0]
[1750836366902,9.0382801,147.44,147.38,6.78518116]
[1750836367071,26.0,147.44,147.28,0.67823]
[1750836367272,9.0382801,147.32,147.26,6.7907103]
[1750836367500,6.78506855,147.39,147.28,15.82806825]
[1750836367797,9.0382801,147.33,147.27,15.82851253]
[1750836368002,9.0382801,147.3,147.25,9.0382801]
[1750836368206,9.0382801,147.3,147.24,17.2382801]
[1750836368498,9.0382801,147.3,147.2,41.45126235]
[1750836368499,26.0,147.36,147.28,9.0382801]
[1750836368672,9.0382801,147.35,147.29,9.0382801]
[1750836369000,23.74687057,147.39,147.22,6.79255535]
[1750836369001,26.0,147.32,147.22,6.79255535]
[1750836369294,26.0,147.32,147.2,47.56578139]
[1750836369472,6.7884054,147.31,147.2,56.60406149]
[1750836369673,9.0382801,147.27,147.21,9.0382801]
[1750836370097,9.0382801,147.26,147.21,9.0382801]
[1750836370303,26.0,147.28,147.2,40.77248154]
[1750836370499,6.7884054,147.31,147.2,40.77248154]
[1750836370706,12.72696392,147.27,147.2,53.49944546]
[1750836370890,12.72696392,147.26,147.2,40.77248154]
[1750836371088,12.72696392,147.26,147.2,47.56594032]
[1750836371607,12.72696392,147.26,147.2,60.29290424]
[1750836371908,26.0,147.32,147.23,12.72696392]
[1750836372098,12.72696392,147.28,147.23,12.72696392]
[1750836372296,12.72696392,147.28,147.2,60.29290424]
[1750836372607,12.72696392,147.28,147.2,47.56594032]
[1750836372810,39.68,147.35,147.2,47.56594032]
[1750836372811,23.75135721,147.36,147.23,12.72696392]
[1750836373009,12.72696392,147.3,147.25,12.72696392]
[1750836373398,12.72696392,147.3,147.24,19.51840897]
[1750836373588,12.72696392,147.3,147.24,12.72696392]
[1750836373909,12.72696392,147.28,147.22,19.51951927]
[1750836374274,6.78891144,147.3,147.22,19.51951927]
[1750836374685,12.72696392,147.28,147.22,19.51951927]
[1750836374897,6.78748387,147.33,147.24,12.72696392]
[1750836375091,12.72696392,147.3,147.24,12.72696392]
[1750836375292,12.72696392,147.3,147.25,12.72696392]
[1750836375494,6.78748387,147.33,147.26,12.72696392]
[1750836375779,12.72696392,147.31,147.22,7.47151904]
[1750836375979,12.72696392,147.32,147.26,12.72696392]
[1750836376579,12.72696392,147.32,147.27,12.72696392]
[1750836376785,6.7847208,147.39,147.29,6.78932717]
[1750836376990,6.7847208,147.39,147.3,12.72696392]
[1750836377206,12.72696392,147.34,147.29,19.51629109]
[1750836377623,12.72696392,147.34,147.27,0.67884789]
[1750836377624,12.72696392,147.32,147.27,12.72696392]
[1750836377903,12.72696392,147.33,147.28,12.72696392]
[1750836378506,12.72696392,147.32,147.28,12.72696392]
[1750836378702,23.74652282,147.39,147.25,19.51812053]
[1750836378703,12.72696392,147.3,147.25,19.51812053]
[1750836378890,12.72696392,147.29,147.25,19.51812053]
[1750836379088,12.72696392,147.3,147.25,19.51812053]
[1750836379295,6.7865626,147.35,147.24,8.18]
[1750836379296,12.72696392,147.29,147.24,27.69840559]
[1750836379813,12.72696392,147.3,147.25,12.72696392]
[1750836379985,12.72696392,147.31,147.24,14.97144167]
[1750836380185,6.7865626,147.35,147.28,12.72696392]
[1750836380387,12.72696392,147.33,147.28,12.72696392]
[1750836380719,12.72696392,147.37,147.32,12.72696392]
[1750836380889,12.72696392,147.38,147.34,12.72696392]
[1750836381211,12.72696392,147.37,147.32,12.72696392]
[1750836381407,12.72696392,147.36,147.32,12.72696392]
[1750836381585,12.72696392,147.36,147.28,35.6237041]
[1750836381586,6.7852918,147.38,147.28,18.64964886]
[1750836381786,12.72696392,147.35,147.3,12.72696392]
[1750836382613,12.72696392,147.34,147.29,12.72696392]
[1750836382791,12.72696392,147.34,147.28,6.78942332]
[1750836382792,12.72696392,147.34,147.3,12.72696392]
[1750836383110,19.51417934,147.34,147.29,12.72696392]
[1750836383312,6.78518116,147.38,147.29,12.72696392]
[1750836383499,6.78518116,147.38,147.3,12.72696392]
[1750836383500,12.72696392,147.35,147.3,12.72696392]
[1750836383709,16.96224961,147.39,147.31,12.72696392]
[1750836383710,6.78480382,147.39,147.31,12.72696392]
[1750836384016,32.6564,147.4,147.34,12.72696392]
[1750836384017,6.78432119,147.4,147.34,12.72696392]
[1750836384302,6.78432119,147.4,147.3,18.64964886]
[1750836384303,12.72696392,147.38,147.33,12.72696392]
[1750836384482,12.72696392,147.37,147.33,12.72696392]
[1750836384679,12.72696392,147.38,147.33,12.72696392]
[1750836385081,12.72696392,147.38,147.3,18.64964886]
[1750836385283,12.72696392,147.38,147.33,12.72696392]
[1750836385805,12.72696392,147.37,147.3,18.64964886]
[1750836386111,12.72696392,147.37,147.32,12.72696392]
[1750836386313,6.78536209,147.38,147.32,19.51478579]
[1750836386606,12.72696392,147.37,147.32,19.51478579]
[1750836386801,12.72696392,147.39,147.33,12.72696392]
[1750836387000,12.72696392,147.4,147.32,6.78782187]
[1750836387208,12.72696392,147.4,147.35,12.72696392]
[1750836387600,12.72696392,147.39,147.34,12.72696392]
[1750836387908,6.3604,147.46,147.38,12.72696392]
[1750836388110,4.2366857,147.47,147.37,18.64964886]
[1750836388414,12.72696392,147.45,147.41,12.72696392]
[1750836388791,12.72696392,147.44,147.4,19.51092417]
[1750836388995,6.78150006,147.46,147.4,6.78396025]
[1750836389295,12.72696392,147.41,147.33,16.96778245]
[1750836389602,32.78150006,147.46,147.36,12.72696392]
[1750836389812,12.72696392,147.42,147.37,12.72696392]
[1750836390010,49.73525022,147.46,147.38,12.72696392]
[1750836390213,9.03581078,147.45,147.4,6.78426051]
[1750836390393,9.03581078,147.43,147.38,9.03581078]
[1750836390598,9.03581078,147.41,147.36,15.82177599]
[1750836390799,49.73525022,147.46,147.36,15.82177599]
[1750836390998,9.03581078,147.43,147.38,9.03581078]
[1750836391195,49.73525022,147.46,147.38,9.03581078]
[1750836391504,9.03581078,147.44,147.38,9.03581078]
[1750836391809,32.78150006,147.46,147.38,9.03581078]
[1750836391998,32.78150006,147.46,147.39,9.03581078]
[1750836392320,15.81789914,147.45,147.4,9.03581078]
[1750836392513,9.03581078,147.44,147.39,6.78449314]
[1750836392691,9.03581078,147.44,147.39,15.82030392]
[1750836392892,9.03581078,147.43,147.39,6.78449314]
[1750836393513,6.78208836,147.45,147.38,15.82088118]
[1750836393714,9.03581078,147.44,147.38,15.82088118]
[1750836394316,9.03581078,147.44,147.39,9.03581078]
[1750836394820,9.03581078,147.43,147.39,9.03581078]
[1750836395223,15.81823101,147.44,147.39,9.03581078]
[1750836395596,9.03581078,147.44,147.39,9.03581078]
[1750836395799,13.27249648,147.47,147.41,9.03581078]
[1750836396014,4.2366857,147.47,147.45,9.03581078]
[1750836396214,4.2366857,147.47,147.46,9.03581078]
[1750836396412,4.2366857,147.47,147.46,6.78150006]
[1750836396720,4.2366857,147.47,147.46,15.81731084]
[1750836397518,4.2366857,147.47,147.46,6.78150006]
[1750836397695,4.2366857,147.47,147.42,16.95829822]
[1750836397901,4.2366857,147.47,147.43,9.03581078]
[1750836398101,4.2366857,147.47,147.41,6.78380028]
[1750836398304,4.2366857,147.47,147.41,15.81961106]
[1750836398305,9.03581078,147.45,147.41,15.81961106]
[1750836398524,4.2366857,147.47,147.41,15.81957799]
[1750836398829,4.2366857,147.47,147.41,9.03581078]
[1750836399120,4.2366857,147.47,147.45,9.03581078]
[1750836399321,4.2366857,147.47,147.46,9.03581078]
[1750836399617,4.2366857,147.47,147.44,9.03581078]
[1750836399820,4.2366857,147.47,147.46,9.03581078]
[1750836400202,4.2366857,147.47,147.46,12.67820632]
[1750836400404,4.2366857,147.47,147.46,19.45970638]
[1750836400719,4.2366857,147.47,147.46,38.10935524]
[1750836401329,4.2366857,147.47,147.46,19.45970638]
[1750836402402,4.2366857,147.47,147.45,6.78195998]
[1750836402605,4.2366857,147.47,147.43,12.67820632]
[1750836403024,16.91489202,147.47,147.43,12.67820632]
[1750836403217,4.2366857,147.47,147.42,19.46154643]
[1750836403621,4.2366857,147.47,147.43,12.67820632]
[1750836404327,4.2366857,147.47,147.42,6.78334011]
[1750836404627,12.67820632,147.46,147.42,19.46154643]
[1750836404817,12.67820632,147.46,147.43,4.92933872]
[1750836405017,12.67820632,147.46,147.42,19.46154643]
[1750836405222,4.2366857,147.47,147.43,4.92957788]
[1750836405420,4.2366857,147.47,147.46,12.67820632]
[1750836405932,4.2366857,147.47,147.44,18.64964886]
[1750836406133,4.2366857,147.47,147.45,4.92792356]
[1750836406435,4.2366857,147.47,147.46,36.25577874]
[1750836406627,4.2366857,147.47,147.46,43.71520563]
[1750836407033,4.2366857,147.47,147.46,43.0372788]
[1750836407411,4.2366857,147.47,147.46,24.38762994]
[1750836407716,4.2366857,147.47,147.46,11.70942362]
[1750836407920,16.91489202,147.47,147.44,6.78241996]
[1750836408123,4.2366857,147.47,147.44,6.78241996]
[1750836408537,4.2366857,147.47,147.44,23.73846987]
[1750836408742,4.2366857,147.47,147.44,6.78241996]
[1750836408941,4.2366857,147.47,147.44,19.46062628]
[1750836409240,4.2366857,147.47,147.45,12.67820632]
[1750836409942,4.2366857,147.47,147.46,12.67820632]
[1750836410126,4.2366857,147.47,147.45,12.67820632]
[1750836410618,4.2366857,147.47,147.41,23.74330099]
[1750836410820,4.2366857,147.47,147.44,12.67820632]
[1750836411826,4.2366857,147.47,147.46,12.67820632]
[1750836412635,4.2366857,147.47,147.46,19.45970638]
[1750836414430,4.2366857,147.47,147.46,6.78150006]
[1750836414623,4.2366857,147.47,147.46,19.45970638]
[1750836417745,4.2366857,147.47,147.46,6.78150006]
[1750836417936,4.2366857,147.47,147.46,19.45970638]
[1750836418134,4.2366857,147.47,147.46,6.78150006]
[1750836419324,4.2366857,147.47,147.44,23.73818865]
[1750836419646,16.91489202,147.47,147.44,6.78241996]
[1750836420247,4.2366857,147.47,147.44,23.73846987]
[1750836420430,4.2366857,147.47,147.44,32.77022651]
[1750836420621,4.2366857,147.47,147.44,23.73846987]
[1750836420830,9.03175664,147.46,147.42,6.78334011]
[1750836421061,9.03175664,147.45,147.42,6.78334011]
[1750836421351,9.03175664,147.45,147.41,6.78380028]
[1750836421951,9.03175664,147.42,147.32,15.9974]
[1750836422136,9.03175664,147.38,147.34,9.03175664]
[1750836422650,9.03175664,147.37,147.33,6.78748387]
[1750836422852,9.03175664,147.35,147.3,9.03175664]
[1750836423161,6.4521,147.39,147.3,23.76103189]
[1750836423325,9.03175664,147.37,147.33,6.78748387]
[1750836423530,9.03175664,147.37,147.33,15.81924051]
[1750836423730,13.23693327,147.39,147.33,6.78748387]
[1750836423961,9.03175664,147.36,147.33,6.78748387]
[1750836424164,9.03175664,147.35,147.3,9.03175664]
[1750836424332,12.70629053,147.35,147.3,12.70629053]
[1750836424658,13.23693327,147.39,147.31,12.70629053]
[1750836424826,12.70629053,147.4,147.35,12.70629053]
[1750836425027,12.70629053,147.42,147.37,12.70629053]
[1750836425333,12.70629053,147.39,147.31,35.61956101]
[1750836425534,12.70629053,147.38,147.33,12.70629053]
[1750836425953,12.70629053,147.38,147.34,12.70629053]
[1750836426133,12.70629053,147.4,147.36,12.70629053]
[1750836426334,6.78288001,147.43,147.37,12.70629053]
[1750836426335,12.70629053,147.41,147.37,12.70629053]
[1750836426636,6.469,147.44,147.34,12.70629053]
[1750836426637,12.70629053,147.39,147.34,12.70629053]
[1750836426836,12.70629053,147.38,147.34,12.70629053]
[1750836427038,12.70629053,147.38,147.33,12.70629053]
[1750836427366,23.74008003,147.43,147.32,19.49423514]
[1750836427526,12.70629053,147.41,147.36,12.70629053]
[1750836427731,12.70629053,147.4,147.36,12.70629053]
[1750836427942,12.70629053,147.4,147.35,12.70629053]
[1750836428543,12.70629053,147.4,147.36,6.78610206]
[1750836428746,12.70629053,147.4,147.36,19.49239259]
[1750836428949,12.70629053,147.4,147.36,6.78610206]
[1750836429334,12.70629053,147.39,147.35,19.4927397]
[1750836429552,12.70629053,147.4,147.35,19.4927397]
[1750836429856,12.70629053,147.39,147.35,6.78644917]
[1750836430438,12.70629053,147.38,147.34,6.78688501]
[1750836430632,12.70629053,147.37,147.33,12.70629053]
[1750836430957,12.70629053,147.37,147.32,12.70629053]
[1750836431454,12.70629053,147.36,147.31,19.49469593]
[1750836432053,6.469,147.44,147.35,12.70629053]
[1750836432253,4.2366857,147.47,147.43,12.70629053]
[1750836432832,12.70629053,147.46,147.36,52.98784866]
[1750836433031,16.94297623,147.47,147.42,12.70629053]
[1750836433239,16.94297623,147.47,147.43,12.70629053]
[1750836433742,16.94297623,147.47,147.43,19.48892975]
[1750836434048,23.72406868,147.47,147.42,19.48945607]
[1750836434253,12.70629053,147.43,147.37,23.74974553]
[1750836434443,12.70629053,147.43,147.39,12.70629053]
[1750836434837,12.70629053,147.44,147.39,12.70629053]
[1750836435148,12.70629053,147.44,147.4,6.78426051]
[1750836435545,12.70629053,147.43,147.39,19.49085425]
[1750836435730,12.70629053,147.43,147.38,12.70629053]
[1750836435927,12.70629053,147.43,147.36,7.66]
[1750836435928,12.70629053,147.4,147.37,6.78564158]
[1750836437137,12.70629053,147.38,147.31,24.88661708]
[1750836437359,12.70629053,147.36,147.32,19.49423514]
[1750836437845,6.6044,147.45,147.35,12.70629053]
[1750836438049,12.70629053,147.43,147.39,12.70629053]
[1750836438228,12.70629053,147.43,147.38,12.70629053]
[1750836438437,12.70629053,147.42,147.38,12.70629053]
[1750836438636,6.6044,147.45,147.39,12.70629053]
[1750836438842,12.70629053,147.43,147.34,18.64964886]
[1750836439045,12.70629053,147.43,147.39,19.49089708]
[1750836439958,26.09274735,147.45,147.39,6.78460655]
[1750836440138,12.70629053,147.44,147.39,6.78460655]
[1750836440336,12.70629053,147.44,147.39,19.49089708]
[1750836440665,12.70629053,147.46,147.41,12.70629053]
[1750836440832,11.01783235,147.47,147.42,12.70629053]
[1750836441034,12.70629053,147.46,147.42,12.70629053]
[1750836441244,4.2366857,147.47,147.42,12.70629053]
[1750836441451,16.94297623,147.47,147.42,12.70629053]
[1750836441659,4.2366857,147.47,147.46,12.70629053]
[1750836443255,4.2366857,147.47,147.46,6.78150006]
[1750836443457,4.2366857,147.47,147.46,19.48779059]
[1750836444546,4.2366857,147.47,147.46,38.13743945]
[1750836444751,4.2366857,147.47,147.46,43.08254377]
[1750836445434,4.2366857,147.47,147.46,11.72660438]
[1750836445638,4.2366857,147.47,147.46,19.48779059]
[1750836445837,4.2366857,147.47,147.46,24.43060516]
[1750836446066,4.2366857,147.47,147.46,19.48779059]
[1750836447542,4.2366857,147.47,147.38,48.23851883]
[1750836447746,4.2366857,147.47,147.44,12.70629053]
[1750836448170,4.2366857,147.47,147.43,12.70629053]
[1750836449185,16.94297623,147.47,147.43,12.70629053]
[1750836449811,4.2366857,147.47,147.43,19.48910532]
[1750836449957,16.94297623,147.47,147.43,6.78281479]
[1750836450161,16.94297623,147.47,147.43,19.48910532]
[1750836450872,16.94297623,147.47,147.43,6.78281479]
[1750836451045,16.94297623,147.47,147.43,19.48910532]
[1750836451665,16.94297623,147.47,147.43,12.70629053]
[1750836452180,16.94297623,147.47,147.39,6.7847208]
[1750836452181,12.70629053,147.44,147.39,6.7847208]
[1750836452347,10.4232857,147.47,147.42,12.70629053]
[1750836452545,23.12957623,147.47,147.42,12.70629053]
[1750836452774,10.4232857,147.47,147.43,12.70629053]
[1750836452946,23.12957623,147.47,147.42,12.70629053]
[1750836453590,23.12957623,147.47,147.42,19.48926877]
[1750836453795,12.70629053,147.46,147.42,19.48926877]
[1750836455784,12.70629053,147.46,147.42,6.78297824]
[1750836455969,12.70629053,147.46,147.42,19.48926877]
[1750836456169,23.12957623,147.47,147.43,12.70629053]
[1750836456664,12.70629053,147.46,147.42,19.48926877]
[1750836457987,12.70629053,147.45,147.41,19.48990121]
[1750836458172,12.70629053,147.46,147.41,19.48990121]
[1750836458378,12.70629053,147.45,147.41,19.48990121]
[1750836460893,12.70629053,147.45,147.41,6.78361068]
[1750836463697,12.70629053,147.42,147.37,12.70629053]
[1750836463899,12.70629053,147.42,147.38,12.70629053]
[1750836464198,12.70629053,147.43,147.33,110.44165596]
[1750836464398,9.03670283,147.43,147.39,9.03670283]
[1750836464574,10.4232857,147.47,147.41,9.03670283]
[1750836464775,9.03670283,147.45,147.41,9.03670283]
[1750836465492,9.03670283,147.46,147.41,9.03670283]
[1750836465998,9.03670283,147.46,147.42,6.78334011]
[1750836466295,10.4232857,147.47,147.42,6.78334011]
[1750836466296,12.68795027,147.45,147.42,6.78334011]
[1750836466796,12.68795027,147.46,147.42,6.78334011]
[1750836467494,23.11123597,147.47,147.42,19.47129038]
[1750836468394,23.11123597,147.47,147.43,12.68795027]
[1750836468772,23.11123597,147.47,147.42,23.7416904]
[1750836468980,12.68795027,147.46,147.42,36.42964067]
[1750836469496,23.11123597,147.47,147.43,12.68795027]
[1750836469688,16.92463597,147.47,147.43,12.68795027]
[1750836470296,16.92463597,147.47,147.44,6.78241996]
[1750836472501,13.21758004,147.44,147.42,16.95732564]
[1750836472677,13.21758004,147.44,147.43,12.68795027]
[1750836474000,13.21758004,147.44,147.43,19.47083028]
[1750836477605,13.21758004,147.44,147.39,57.66888653]
[1750836477810,13.21758004,147.44,147.43,12.68795027]
[1750836479913,13.21758004,147.44,147.37,57.67795344]
[1750836480100,13.21758004,147.44,147.42,12.68795027]
[1750836480409,13.21758004,147.44,147.37,57.67795344]
[1750836480410,13.21758004,147.44,147.43,12.68795027]
[1750836480991,13.21758004,147.44,147.39,18.64964886]
[1750836481303,13.21758004,147.44,147.42,12.68795027]
[1750836481502,13.21758004,147.44,147.43,39.43579048]
[1750836481808,13.21758004,147.44,147.43,45.54047914]
[1750836481809,7.15258004,147.44,147.43,45.54047914]
[1750836481995,7.15258004,147.44,147.43,46.21832542]
[1750836482404,4.2366857,147.47,147.43,31.83792631]
[1750836482610,4.2366857,147.47,147.46,12.68795027]
[1750836483000,4.2366857,147.47,147.43,14.20288001]
[1750836483196,16.92463597,147.47,147.43,7.42]
[1750836483419,12.68795027,147.46,147.43,14.20276848]
[1750836483590,16.92463597,147.47,147.43,26.89071875]
[1750836483798,4.2366857,147.47,147.45,12.68795027]
[1750836483987,4.2366857,147.47,147.46,12.68795027]
[1750836485797,4.2366857,147.47,147.43,31.1599685]
[1750836486013,4.2366857,147.47,147.45,12.68795027]
[1750836486223,4.2366857,147.47,147.43,14.20276848]
[1750836486402,9.03077123,147.46,147.43,7.42]
[1750836486602,13.26745693,147.47,147.43,14.20280216]
[1750836486811,20.04857186,147.47,147.43,7.42]
[1750836487012,11.01780063,147.47,147.43,7.42]
[1750836487342,9.03077123,147.46,147.43,7.42]
[1750836487519,9.03077123,147.46,147.43,14.20286984]
[1750836487711,11.01780063,147.47,147.42,15.8139607]
[1750836487908,9.03077123,147.46,147.42,15.8139607]
[1750836488110,4.2366857,147.47,147.43,9.03077123]
[1750836488313,4.2366857,147.47,147.44,9.03077123]
[1750836488820,4.2366857,147.47,147.4,9.03077123]
[1750836488821,9.03077123,147.45,147.4,9.03077123]
[1750836489016,9.03077123,147.46,147.41,9.03077123]
[1750836489315,13.26745693,147.47,147.42,9.03077123]
[1750836489507,9.03077123,147.46,147.42,9.03077123]
[1750836489704,9.03077123,147.46,147.4,15.81503174]
[1750836489705,9.03077123,147.45,147.4,15.81503174]
[1750836489903,15.27347123,147.46,147.41,9.03077123]
[1750836490103,22.05498008,147.46,147.41,9.03077123]
[1750836490698,9.03077123,147.45,147.4,15.81503174]
[1750836491200,9.03077123,147.44,147.4,6.78426051]
[1750836491414,10.67117123,147.45,147.4,15.81503174]
[1750836491612,9.03077123,147.44,147.4,6.78426051]
[1750836492709,8.42245393,147.45,147.39,6.78452297]
[1750836492909,9.03077123,147.43,147.39,6.78452297]
[1750836493415,8.42245393,147.45,147.38,7.42]
[1750836493416,9.03077123,147.41,147.38,7.42]
[1750836493601,9.03077123,147.39,147.33,6.78748387]
[1750836493926,9.03077123,147.36,147.32,16.21077123]
[1750836494626,9.03077123,147.35,147.32,13.96789674]
[1750836495507,9.03077123,147.34,147.32,7.18]
[1750836495713,9.03077123,147.34,147.29,26.00404795]
[1750836496028,9.03077123,147.33,147.3,6.78886625]
[1750836496205,9.03077123,147.33,147.29,6.78916136]
[1750836496399,9.03077123,147.32,147.29,6.78916136]
[1750836496714,9.03077123,147.3,147.27,6.78985257]
[1750836498122,9.03077123,147.29,147.27,6.78985257]
[1750836498424,15.15887123,147.29,147.21,23.77456641]
[1750836498632,9.03077123,147.25,147.21,6.79301677]
[1750836500538,1.5071,147.28,147.24,9.03077123]
[1750836500714,15.15887123,147.29,147.24,9.03077123]
[1750836501116,9.03077123,147.28,147.21,23.77555871]
[1750836501427,9.03077123,147.27,147.22,9.03077123]
[1750836501922,9.03077123,147.27,147.23,6.792094]
[1750836502135,9.03077123,147.26,147.23,6.792094]
[1750836502809,9.03077123,147.26,147.23,23.772329]
[1750836503009,9.03077123,147.25,147.23,23.772329]
[1750836504028,9.03077123,147.25,147.23,16.980235]
[1750836504340,9.03077123,147.26,147.23,16.980235]
[1750836504625,9.03077123,147.27,147.23,26.01100623]
[1750836505526,9.03077123,147.27,147.23,16.980235]
[1750836505733,9.03077123,147.27,147.23,23.772329]